Cogmind - Beta 10.2 @@@ ROGUE MODE // 2021.09.11 @ 13:42:57 Player: Storyteller Result: Destroyed by as-11489 with Assembled Rifle Performance ------------- Evolutions (0) 0 Regions Visited (4) 800 Robots Destroyed (15) 75 Value Destroyed (220) 220 Prototype IDs (0) 0 Alien Tech Used (0) 0 Bonus (0) 0 TOTAL SCORE: 1095 Bonus ------- None Cogmind --------- Core Integrity 0/250 Matter 277/300 Energy 100/100 System Corruption 0% Temperature Cool (0) Movement Walking (150) Ox1 Location -9/Mines Parts ------- > --- POWER (1) -------- (None) > --- PROPULSION (2) --- Aluminum Leg > --- UTILITY (2) ------ Large Storage Unit Transmission Jammer > --- WEAPON (2) ------- (None) > --- INVENTORY (10) --- Medium Storage Unit Medium Storage Unit Large Storage Unit Visual Processing Unit Experimental Sensor Array Core Shielding Peak State ------------ > --- POWER ------------ Nuclear Core > --- PROPULSION ------- Aluminum Leg Flexi-carbon Leg > --- UTILITY ---------- Large Storage Unit Transmission Jammer > --- WEAPON ----------- EM Pulse Gun Ion Cannon > --- INVENTORY -------- Ion Engine Aluminum Leg Medium Storage Unit Medium Storage Unit Large Storage Unit Visual Processing Unit Experimental Sensor Array Core Shielding Assault Rifle [Rating: 18] Favorites ----------- Power Nuclear Core Engine Light Ion Engine Power Core Nuclear Core Propulsion Aluminum Leg Treads Light Treads Leg Aluminum Leg Utility Large Storage Unit Device Transmission Jammer Storage Large Storage Unit Protection Core Shielding Weapon EM Pulse Gun Energy Gun EM Pulse Gun Energy Cannon Ion Cannon Ballistic Gun Assault Rifle Build | -11 -10 -10 -10 -9 ------- Run | Scr Mat Min Exi Min Slots Evolved . | . . . . . Power . | . . . . . Propulsion . | . . . . . Utility . | . . . . . Weapon . | . . . . . Parts Attached 23 | 9 4 3 . 7 Power 4 | 1 . 1 . 2 Engine 3 | 1 . . . 2 Core 1 | . . 1 . . Reactor . | . . . . . Propulsion 10 | 5 1 . . 4 Treads 3 | 3 . . . . Leg 7 | 2 1 . . 4 Wheel . | . . . . . Hover . | . . . . . Flight . | . . . . . Utility 4 | 1 2 1 . . Device 1 | . . 1 . . Storage 2 | 1 1 . . . Processor . | . . . . . Hackware . | . . . . . Protection 1 | . 1 . . . Artifact . | . . . . . Weapon 5 | 2 1 1 . 1 Energy Gun 3 | 2 1 . . . Energy Cannon 1 | . . 1 . . Ballistic Gun 1 | . . . . 1 Ballistic Cannon . | . . . . . Launcher . | . . . . . Special Weapon . | . . . . . Impact Weapon . | . . . . . Slashing Weapon . | . . . . . Piercing Weapon . | . . . . . Special Melee Weapon . | . . . . . Unidentified Prototypes . | . . . . . Parts Lost 12 | . 1 . . 11 Power 3 | . . . . 3 Propulsion 5 | . . . . 5 Utility . | . . . . . Weapon 4 | . 1 . . 3 Highest Loss Streak 5 | . 1 . . 5 Average Slot Usage (%) 98 | . 98 99 100 89 Engine 3 | . 14 . . 3 Core 10 | . . 13 14 9 Leg 27 | . 28 28 28 25 Device 10 | . . 12 14 14 Storage 14 | . 14 14 14 14 Protection 3 | . 13 . . . Energy Gun 16 | . 28 15 14 8 Energy Cannon 10 | . . 12 14 9 Naked Turns . | . . . . . Heaviest Build 32 | 11 24 32 32 32 Greatest Support 40 | 40 20 20 20 30 Greatest Overweight (x) 2 | . 1 1 1 2 Average Overweight (x) . | . . 1 1 . Largest Inventory Capacity 10 | 6 10 10 10 10 Average Capacity 9 | 5 8 10 10 10 Most Carried 10 | 5 9 10 10 10 Average Carried 8 | 2 6 9 9 8 Final Capacity 10 | 6 10 10 10 10 Final Carried 10 | 4 9 10 10 6 Class Distribution -------------------- 100% | Mutant Dominant Class ---------------- Mutant | -10/Materials Mutant | -10/Mines Mutant | -10/Exiles Mutant | -9/Mines Resources | -11 -10 -10 -10 -9 ----------- Run | Scr Mat Min Exi Min Matter Collected 401 | 177 148 26 . 50 Remotely . | . . . . . Salvage Created 484 | . 273 . . 211 Parts 28 | . 24 . . 4 Haulers Intercepted . | . . . . . Recyclers Shooed . | . . . . . Parts Field Recycled . | . . . . . Retrieved Matter . | . . . . . Parts Self-Destructed . | . . . . . Prevented . | . . . . . Kills | -11 -10 -10 -10 -9 ------- Run | Scr Mat Min Exi Min Combat Hostiles Destroyed 16 | . 9 . . 7 Guns 13 | . 9 . . 4 Cannons 3 | . . . . 3 Classes Destroyed 5 | . 3 . . 2 Recycler 2 | . . . . 2 Watcher 1 | . 1 . . . Swarmer 9 | . 6 . . 3 Grunt 3 | . 3 . . . Assembled 4 | . . . . 4 Best Kill Streak 4 | . 3 . . 4 Combat Bots Only 3 | . 3 . . 3 Max Kills in Single Turn 1 | . 1 . . 1 Gunslinging . | . . . . . Exploded . | . . . . . Melee . | . . . . . Uniques/NPCs Destroyed . | . . . . . Combat | -11 -10 -10 -10 -9 -------- Run | Scr Mat Min Exi Min Damage Taken 1386 | . 348 45 . 993 Core 259 | . 57 9 . 193 Absorbed by Shields . | . . . . . Core Remaining (%) 100 | 100 . . . . Volleys Fired 64 | . 33 . . 31 Largest 2 | . 2 . . 1 Hottest 80 | . 80 . . 60 Shots Fired 71 | . 40 . . 31 Gun 56 | . 40 . . 16 Cannon 15 | . . . . 15 Launcher . | . . . . . Special . | . . . . . Kinetic 16 | . . . . 16 Thermal 15 | . . . . 15 Explosive . | . . . . . Electromagnetic 40 | . 40 . . . Robot Hit Streak 9 | . 9 . . 6 Robot Miss Streak 5 | . 5 . . 4 Penetration Max . | . . . . . Secondary Targets . | . . . . . Shots Hit Robots 41 | . 22 . . 19 Core Hits 24 | . 12 1 . 11 Critical Hits . | . . . . . Critical Kills . | . . . . . Critical Parts Destroyed . | . . . . . Melee Attacks . | . . . . . Impact . | . . . . . Slashing . | . . . . . Piercing . | . . . . . Sneak Attacks . | . . . . . Combat Hostiles . | . . . . . Follow-up Attacks . | . . . . . Damage Inflicted 640 | . 285 3 . 352 Guns 404 | . 285 . . 119 Cannons 233 | . . . . 233 Explosions . | . . . . . Melee . | . . . . . Ramming 3 | . . 3 . . Kinetic 119 | . . . . 119 Thermal 233 | . . . . 233 Explosive . | . . . . . Electromagnetic 285 | . 285 . . . Impact . | . . . . . Slashing . | . . . . . Piercing . | . . . . . Highest Corruption . | . . . . . Average Corruption . | . . . . . Corruption Purged . | . . . . . Overload Shots . | . . . . . Overflow Damage 1 | . . . . 1 Projectiles 1 | . . . . 1 Explosions . | . . . . . Melee . | . . . . . Knockbacks . | . . . . . Impact . | . . . . . Kinetic . | . . . . . Secondary . | . . . . . Self-Inflicted Damage 1 | . . 1 . . Shots . | . . . . . Rammed 1 | . . 1 . . Targets Rammed 1 | . . 1 . . Kicked . | . . . . . Crushed . | . . . . . Highest Temperature 294 | . 126 . . 294 Average Temperature 89 | . 43 . . 131 Received Heat Transfer 36 | . 36 . . . Effects 1 | . . . . 1 Energy Bleed 1 | . . . . 1 Siege Activations . | . . . . . Robots Corrupted . | . . . . . Combat Hostiles . | . . . . . Parts Fried . | . . . . . Impact Corruptions . | . . . . . Robots Melted . | . . . . . Combat Hostiles . | . . . . . Parts Melted 1 | . . . . 1 Heat Transferred 370 | . . . . 370 Parts Sabotaged . | . . . . . Parts Stolen . | . . . . . Parts Stripped . | . . . . . Power Chain Reactions . | . . . . . Missiles Intercepted . | . . . . . Alert | -11 -10 -10 -10 -9 ------- Run | Scr Mat Min Exi Min Peak Influence 217 | . 217 14 . 80 Initial 14 | . . 14 . . Average 42 | . 69 14 . 25 Maximum Alert Level 1 | . 1 . . . Low Security (%) 99 | 100 98 100 . 100 Level 1 . | . 1 . . . Level 2 . | . . . . . Level 3 . | . . . . . Level 4 . | . . . . . Level 5 . | . . . . . High Security . | . . . . . Max Security . | . . . . . Squads Dispatched 1 | . 1 . . . Investigation . | . . . . . Extermination . | . . . . . Reinforcement 1 | . 1 . . . Assault . | . . . . . Garrison . | . . . . . Intercept . | . . . . . Construction Impeded . | . . . . . Haulers Reinforced . | . . . . . Stealth | -11 -10 -10 -10 -9 --------- Run | Scr Mat Min Exi Min Distress Signals 2 | . 2 . . . Communications Jammed . | . . . . . Distress Signals . | . . . . . Times Spotted 37 | . 16 . . 21 Peak Tracking Total 13 | . 5 . . 13 Tactical Retreats 1 | . 1 . . . Traps | -11 -10 -10 -10 -9 ------- Run | Scr Mat Min Exi Min Traps Triggered 2 | . . 2 . . Indirectly . | . . . . . Trap Hack Attempts . | . . . . . Triggered . | . . . . . Disarmed . | . . . . . Reprogrammed . | . . . . . Reused . | . . . . . Traps Extracted . | . . . . . Installed . | . . . . . Triggered 1 | . . . . 1 Machines | -11 -10 -10 -10 -9 ---------- Run | Scr Mat Min Exi Min Machines Disabled . | . . . . . Max in Single Turn . | . . . . . Machines Sabotaged . | . . . . . Garrisons Compromised . | . . . . . Overloaded Fab Kills . | . . . . . Fab Network Shutdowns . | . . . . . Hacking | -11 -10 -10 -10 -9 --------- Run | Scr Mat Min Exi Min Machines Accessed 7 | . 2 1 4 . Terminals 1 | . 1 . . . Fabricators . | . . . . . Repair Stations . | . . . . . Recycling Units 1 | . 1 . . . Scanalyzers . | . . . . . Garrison Access . | . . . . . Total Hacks 46 | . 3 1 42 . Successful 45 | . 2 1 42 . Failed 1 | . 1 . . . Catastrophic . | . . . . . Database Lockouts . | . . . . . Manual . | . . . . . Terminals 1 | . 1 . . . Fabricators . | . . . . . Repair Stations . | . . . . . Recycling Units 2 | . 2 . . . Scanalyzers . | . . . . . Garrison Access . | . . . . . Terminal Hacks 44 | . 1 1 42 . Record 42 | . . . 42 . Robot Analysis 1 | . 1 . . . Open Door 1 | . . 1 . . Fabricator Hacks . | . . . . . Repair Station Hacks . | . . . . . Recycling Unit Hacks 1 | . 1 . . . Report Inventory 1 | . 1 . . . Scanalyzer . | . . . . . Garrison Access Hacks . | . . . . . Unauthorized Hacks . | . . . . . Terminals . | . . . . . Fabricators . | . . . . . Repair Stations . | . . . . . Recycling Units . | . . . . . Scanalyzers . | . . . . . Garrison Access . | . . . . . Data Cores Recovered . | . . . . . Used . | . . . . . Hacking Detections . | . . . . . Full Trace Events . | . . . . . Feedback Events . | . . . . . Feedback Blocked . | . . . . . Robot Schematics Acquired . | . . . . . Robots Built . | . . . . . Matter . | . . . . . Time . | . . . . . Total Robot Build Rating . | . . . . . Part Schematics Acquired . | . . . . . Parts Built . | . . . . . Matter . | . . . . . Time . | . . . . . Total Part Build Rating . | . . . . . Parts Repaired . | . . . . . Time . | . . . . . Parts Recycled . | . . . . . Recycled Matter . | . . . . . Retrieved Matter . | . . . . . Retrieved Components . | . . . . . Parts Scanalyzed . | . . . . . Part Schematics Acquired . | . . . . . Parts Damaged . | . . . . . Bothacking | -11 -10 -10 -10 -9 ------------ Run | Scr Mat Min Exi Min Used RIF Installer . | . . . . . Robots Hacked . | . . . . . Non-combat . | . . . . . Combat . | . . . . . Robot Hacks Applied . | . . . . . Relay Couplers Released . | . . . . . Robots Rewired . | . . . . . Allies Hacked . | . . . . . Hacks Repelled . | . . . . . Allies | -11 -10 -10 -10 -9 -------- Run | Scr Mat Min Exi Min Total Allies . | . . . . . Largest Group . | . . . . . Highest-Rated Group . | . . . . . Highest-Rated Ally . | . . . . . Total Orders . | . . . . . Ally Attacks . | . . . . . Total Damage . | . . . . . Kills . | . . . . . Allies Corrupted . | . . . . . Allies Melted 1 | . . 1 . . Intel | -11 -10 -10 -10 -9 ------- Run | Scr Mat Min Exi Min Robot Analysis Total 1 | . 1 . . . Derelict Logs Recovered . | . . . . . Drone Launches . | . . . . . Drone Recoveries . | . . . . . Exploration | -11 -10 -10 -10 -9 ------------- Run | Scr Mat Min Exi Min Turns Passed 3311 | 114 740 345 1754 358 Spaces Moved 2089 | 65 445 219 1165 195 Core 6 | 6 . . . . Treads 26 | 26 . . . . Legs 2057 | 33 445 219 1165 195 Wheels . | . . . . . Hover . | . . . . . Flight . | . . . . . Fastest Speed 50 | 50 120 150 150 120 Average Speed 146 | 129 136 150 150 145 Slowest Speed 180 | 160 150 150 150 180 Overloaded Moves . | . . . . . Propulsion Burnouts . | . . . . . Robots Hopped . | . . . . . Cave-ins Triggered . | . . . . . Exploration Rate (%) 45 | 4 47 41 93 42 Regions Visited 4 Branch Regions 3 Pre-discovered Areas 1 | . . . 1 . Known Exits Taken . | . . . . . Unknown Exits Taken 4 | 1 1 1 1 . Scrap Searched 1 | . . 1 . . Spaces Dug . | . . . . . Terrain Destroyed 1 | . . . . 1 Melee . | . . . . . Projectile 1 | . . . . 1 AOE . | . . . . . Terrain Rammed . | . . . . . Walls Destroyed . | . . . . . Machines Disabled . | . . . . . Actions | -11 -10 -10 -10 -9 --------- Run | Scr Mat Min Exi Min Total 2280 | 91 540 236 1174 239 Wait 65 | 12 41 10 . 2 Move 2085 | 64 444 218 1164 195 Hop . | . . . . . Pick Up 24 | 5 11 . 5 3 Fast Attach 12 | 6 2 3 . 1 Attach 7 | . 1 . . 6 Detach 3 | . 1 2 . . Swap 4 | 3 1 . . . Drop 15 | 1 6 2 5 1 Fire 64 | . 33 . . 31 Melee . | . . . . . Ram . | . . . . . Kick 1 | . . 1 . . Crush . | . . . . . Escape Stasis . | . . . . . Rewire . | . . . . . Trap . | . . . . . Miscellaneous . | . . . . . Route ------- -11/Scrapyard -10/Materials (discovered 2 exits: [*Mat] / *Min) -10/Mines (discovered 2 exits: [*Mat] / *Exi) -10/Exiles (discovered 2 exits: [*Min x2]) -9/Mines (discovered 1 exit: [*Mat]) History --------- Turn | Location | Event 15 | -11/Scrapyard | Discovered new exit (range 15) 115 | -11/Scrapyard | Entered Materials 314 | -10/Materials | Build established: Mutant 330 | -10/Materials | Discovered new exit (range 12) 571 | -10/Materials | Discovered new exit (range 10) 855 | -10/Materials | Entered Mines 859 | -10/Mines | Met a Derelict who couldn't figure out how to use a Trap Extractor 938 | -10/Mines | A weapon hastily lodged in a ceiling crevice suddenly fell to the ground 1031 | -10/Mines | Found a hidden stash of uninstalled traps 1111 | -10/Mines | Discovered new exit (range 9) 1193 | -10/Mines | Deemed a non-threat by the Exiles lab entrance 1194 | -10/Mines | Discovered new exit (range 5) 1200 | -10/Mines | Entered Exiles 1255 | -10/Exiles | Discovered new exit (range 14) 1341 | -10/Exiles | Met 8R-AWN 1370 | -10/Exiles | Met EX-HEX 1428 | -10/Exiles | Met EX-DEC 1563 | -10/Exiles | Visited The Gauntlet 1796 | -10/Exiles | Learned location of Zion (-7) 1905 | -10/Exiles | Discovered new exit (range 14) 2031 | -10/Exiles | Met EX-BIN 2954 | -10/Exiles | Entered Mines 2957 | -9/Mines | Met a Derelict bent on vengeance 2998 | -9/Mines | Found a damaged Exp. Sensor Array with a note attached 3001 | -9/Mines | Found Prototype Device 3176 | -9/Mines | Assembled infested the area 3181 | -9/Mines | Assisted by a Guerilla fighting off Assembled 3188 | -9/Mines | Core integrity fell below 50% 3258 | -9/Mines | Lost 5 parts (1p2n2w) 3261 | -9/Mines | Core integrity fell below 20% 3285 | -9/Mines | Discovered new exit (range 12) 3312 | -9/Mines | Destroyed by as-11489 with Assembled Rifle Last Messages --------------- 03234_ The unstable cave ceiling collapses. 03236_ Acquired Lgt. Deuterium Engine. 03237_ The unstable cave ceiling collapses. 03238_ Acquired 24 matter. 03240_ The unstable cave ceiling collapses. 03255_ K-01 Serf collects debris. 03260_ Flexi-carbon Leg destroyed. 03266_ Ion Engine destroyed. 03266_ Aluminum Leg destroyed. 03269_ K-01 Serf collects debris. 03273_ K-01 Serf destroyed. 03277_ as-35032 destroyed. 03281_ as-94375 destroyed. 03282_ Acquired 16 matter. 03283_ Assault Rifle destroyed. 03285_ EXIT=FOUND 03287_ Lgt. Deuterium Engine destroyed. 03303_ K-01 Serf collects debris. 03310_ K-01 Serf destroyed. 03312_ K-01 Serf collects debris. Map ----- +----------------------------------------------------+ | ##???# ???????#######???# ### #??? | | ##??# #??????## ##??# ## ##??? | | ##?# #?????## #### ## #####???? | | ### #?????# # ##???????? | | ## #????## # ##????????? | | ##?### ##### # #?????????? | | ### [* ##???# #?????????? | | ! % ##=*%* ##????# #?????????? | | ===*# %%[ #?????#######?????????? | | =%%% ##% ## ##?????????????????????? | | *=! ## ######??????????????????????? | | ^ ^######???????????????????????????? | | # # ^ ##???????????????????????????????? | | ^ ## ##?????????????###??????????????? | | ##???????????? ##?????????????? | | ####### #???????????? ##????????????? | | ?##### #???????????? ##???????????? | | ## ####???????????? ##??????????? | | # ##???????????????# #??????????? | | ## #???????????????## #??????????? | | #### ##?????????????## #???????????? | | # # ##???????###### #????????????? | | ##??????# #?????????????? | | % # ####?????# #### #?????????????? | | % ## #?????# #?## ##????????????? | | # % = =######## ### @kr #????????????? | | ## #% !%*% %a%== k #???????????? | | ?# # %=! ############!% #??????????? | | ### #?????????# #?????????? | | # ##?????????# #????????? | | # #??????????## #???????? | | ??????????### ## #???????? | | = ???????????#####?# ##???????? | | |#????????????????? #????????? | | # #?????????????????? #????????? | | # # #??????????????????##????????? | | #????????????????????????????? | | # ????????????????????????????? | | ## ####< ???????????????????????????? | | ?#####???? #??????????????????????????? | | ?????????? ? ??????????????????????????? | | ??????????# ? ?????????????????????????? | | ??????????? ??#?????????????????????????? | | ??????????? ????????????????????????????? | | ??????????????????????????????????????????? | | ??????????????????????????????????????????? | | ??????????????????????????????????????????? | | ??????????????????????????????????????????? | | ??????????????????????????????????????????? | | ??????????????????????????????????????????? | +----------------------------------------------------+ Best States ------------- Heat Dissipation 25 Energy Generation 14 Energy Capacity 250 Matter Stores 300 Matter Capacity 300 Sight Range 16 Terrain Scan Density 10 Jamming Range 8 Core Shielding 20 Evasion (%) 40 Recoil Reduction 2 Item Schematics ----------------- None Robot Schematics ------------------ None Fabricated ------------ Nothing Alien Tech Used ----------------- None Achievements -------------- None Challenges ------------ None Game ------ Seed SwarmNetworkMachine Manual? 0 Play Time 00:27:10 Cumulative 22.1 hours Start 2021.09.11 @ 02:13:15 End 2021.09.11 @ 13:42:57 Sessions 2 Manual Loads 0 Difficulty Rogue Special Mode None Game No. 42 Rogue 42 Adventurer 0 Explorer 0 Win Type - Total 0 Types 0/0/0/0/0/0/0/0/0 Lore% 20 Gallery% 19 Achievement% 14 Wizard Run 0 Options --------- ASCII 1 Keyboard 1 Movement Numpad Keybinds 0 Fullscreen 1 Font 18/Terminus Map View 76x50 Tactical HUD 1 Map Filters NONE Filters NONE Steam 1 RUN: dee41d99-6d8a-46cf-bef9-031f165190f4